fUST/lending_fUST_20250427
["ID","MTS","AMOUNT","RATE_DAILY","PERIOD"]
[359125712,1745721042663,-400.0,0.0001863,2]
[359125713,1745721042674,-400.0,0.0001863,2]
[359125714,1745721042686,-400.0,0.0001863,2]
[359125715,1745721042697,-400.0,0.0001863,2]
[359125716,1745721042710,-400.0,0.0001863,2]
[359125717,1745721042721,-400.0,0.0001863,2]
[359125718,1745721042732,-400.0,0.0001863,2]
[359125719,1745721042743,-400.0,0.0001863,2]
[359125720,1745721042756,-400.0,0.0001863,2]
[359125721,1745721042767,-400.0,0.0001863,2]
[359125722,1745721042778,-537.83,0.0001863,2]
[359125723,1745721042790,-400.0,0.0001863,2]
[359125724,1745721042802,-400.0,0.0001863,2]
[359125725,1745721042814,-400.0,0.0001863,2]
[359125726,1745721042825,-400.0,0.0001863,2]
[359125727,1745721042837,-400.0,0.0001863,2]
[359125728,1745721042848,-200.0,0.0001863,2]
[359125729,1745721042859,-400.0,0.0001863,2]
[359125730,1745721042871,-400.0,0.0001863,2]
[359125731,1745721042883,-400.0,0.0001863,2]
[359125732,1745721042895,-151.0,0.0001863,2]
[359125733,1745721042906,-400.0,0.0001863,2]
[359125734,1745721042918,-824.37,0.0001863,2]
[359125735,1745721042931,-400.0,0.0001863,2]
[359125736,1745721042944,-400.0,0.0001863,2]
[359125737,1745721042955,-400.0,0.0001863,2]
[359125738,1745721042968,-584.56,0.0001863,2]
[359125739,1745721042980,-400.0,0.0001863,2]
[359125740,1745721042992,-868.84,0.0001863,2]
[359125741,1745721043004,-400.0,0.0001863,2]
[359125742,1745721043015,-411.17,0.0001863,2]
[359125743,1745721043027,-500.0,0.00018904,2]
[359125744,1745721043040,-500.0,0.00018904,2]
[359125745,1745721043052,-500.0,0.00018904,2]
[359125746,1745721043064,-414.16431022,0.00018904,2]
[359125747,1745721043076,-410.80280227,0.00018904,2]
[359125748,1745721043087,-400.0,0.00018904,2]
[359125749,1745721043099,-430.61092806,0.00018904,2]
[359125750,1745721043109,-400.0,0.00018904,2]
[359125751,1745721043119,-414.09367529,0.00018904,2]
[359125752,1745721043128,-500.75498207,0.00018904,2]
[359125753,1745721043138,-308.17537125,0.00018904,2]
[359125755,1745721043148,-413.63131736,0.00018904,2]
[359125757,1745721043158,-325.72356626,0.00018904,2]
[359125759,1745721043168,-400.0,0.00018904,2]
[359125760,1745721043179,-400.0,0.00018904,2]
[359125762,1745721043189,-400.0,0.00018904,2]
[359125763,1745721043199,-541.49640468,0.00018904,2]
[359125764,1745721043210,-400.0,0.00018904,2]
[359125765,1745721043220,-400.0,0.00018904,2]
[359125766,1745721043231,-400.0,0.00018904,2]
[359125767,1745721043241,-400.0,0.00018904,2]
[359125768,1745721043253,-400.0,0.00018904,2]
[359125769,1745721043264,-400.0,0.00018904,2]
[359125770,1745721043481,-400.0,0.00018904,2]
[359125771,1745721043494,-400.0,0.00018904,2]
[359125772,1745721043504,-537.83,0.00018904,2]
[359125773,1745721043514,-400.0,0.00018904,2]
[359125774,1745721043523,-400.0,0.00018904,2]
[359125775,1745721043533,-200.0,0.00018904,2]
[359125776,1745721043542,-400.0,0.00018904,2]
[359125777,1745721043552,-400.0,0.00018904,2]
[359125778,1745721043562,-400.0,0.00018904,2]
[359125779,1745721043571,-400.0,0.00018904,2]
[359125780,1745721043580,-400.0,0.00018904,2]
[359125781,1745721043590,-400.0,0.00018904,2]
[359125782,1745721043599,-824.37,0.00018904,2]
[359125783,1745721043609,-400.0,0.00018904,2]
[359125784,1745721043618,-476.50078941,0.00018904,2]
[359125785,1745721043627,-400.0,0.00018904,2]
[359125786,1745721043637,-584.56,0.00018904,2]
[359125787,1745721043646,-400.0,0.00018904,2]
[359125788,1745721043656,-868.84,0.00018904,2]
[359125789,1745721043666,-400.0,0.00018904,2]
[359125790,1745721043675,-411.17,0.00018904,2]
[359125791,1745721043685,-400.0,0.00019178,2]
[359125792,1745721043694,-400.0,0.00019178,2]
[359125793,1745721043704,-400.0,0.00019178,2]
[359125794,1745721043713,-500.0,0.00019178,2]
[359125795,1745721043724,-400.0,0.00019178,2]
[359125796,1745721043733,-400.0,0.00019178,2]
[359125797,1745721043743,-400.0,0.00019178,2]
[359125798,1745721043752,-400.0,0.00019178,2]
[359125799,1745721043762,-400.0,0.00019178,2]
[359125800,1745721043771,-400.0,0.00019178,2]
[359125801,1745721043781,-492.26975743,0.00019178,2]
[359125802,1745721043790,-161.12331162,0.00019178,2]
[359125803,1745721043800,-537.83,0.00019178,2]
[359125804,1745721043809,-400.0,0.00019178,2]
[359125805,1745721043818,-400.0,0.00019178,2]
[359125806,1745721043828,-451.61100224,0.00019178,2]
[359125807,1745721043838,-200.0,0.00019178,2]
[359125808,1745721043847,-400.0,0.00019178,2]
[359125809,1745721043857,-435.17296276,0.00019178,2]
[359125810,1745721043866,-400.0,0.00019178,2]
[359125811,1745721043876,-400.0,0.00019178,2]
[359125812,1745721043886,-824.37,0.00019178,2]
[359125813,1745721043895,-400.0,0.00019178,2]
[359125814,1745721043905,-400.0,0.00019178,2]
[359125815,1745721043915,-584.56,0.00019178,2]
[359125816,1745721043924,-305.03724251,0.00019178,2]
[359125817,1745721043934,-868.84,0.00019178,2]
[359125818,1745721043943,-400.0,0.00019178,2]
[359125819,1745721043953,-411.17,0.00019178,2]
[359125820,1745721043963,-300.0,0.00019178,2]
[359125821,1745721043972,-336.68914223,0.00019279,2]
[359125822,1745721043982,-400.0,0.00019452,2]
[359125823,1745721043991,-525.01356823,0.00019452,2]
[359125824,1745721044001,-151.0,0.00019452,2]
[359125825,1745721044010,-375.87378382,0.00019452,2]
[359125826,1745721044020,-400.0,0.00019452,2]
[359125827,1745721044030,-200.0,0.00019452,2]
[359125828,1745721044039,-400.0,0.00019452,2]
[359125829,1745721044050,-200.0,0.00019452,2]
[359125830,1745721044059,-200.0,0.00019452,2]
[359125831,1745721044069,-537.83,0.00019452,2]
[359125832,1745721044079,-400.0,0.00019452,2]
[359125833,1745721044089,-400.0,0.00019452,2]
[359125834,1745721044099,-400.0,0.00019452,2]
[359125835,1745721044109,-400.0,0.00019452,2]
[359125836,1745721044119,-400.0,0.00019452,2]
[359125837,1745721044129,-824.37,0.00019452,2]
[359125838,1745721044139,-304.89009149,0.00019452,2]
[359125839,1745721044148,-500.0,0.00019452,2]
[359125840,1745721044158,-584.56,0.00019452,2]
[359125841,1745721044168,-868.84,0.00019452,2]
[359125842,1745721044179,-411.17,0.00019452,2]
[359125843,1745721044190,-400.0,0.00019726,2]
[359125844,1745721044200,-825.037239,0.00019726,2]
[359125845,1745721044211,-825.037239,0.00019726,2]
[359125846,1745721044222,-155.83292,0.00019726,2]
[359125847,1745721044231,-155.83292,0.00019726,2]
[359125848,1745721044243,-400.0,0.00019726,2]
[359125849,1745721044253,-400.0,0.00019726,2]
[359125850,1745721044264,-537.83,0.00019726,2]
[359125851,1745721044273,-411.24491866,0.00019726,2]
[359125852,1745721044284,-400.0,0.00019726,2]
[359125853,1745721044294,-400.0,0.00019726,2]
[359125854,1745721044304,-400.0,0.00019726,2]
[359125855,1745721044313,-400.0,0.00019726,2]
[359125856,1745721044324,-824.37,0.00019726,2]
[359125857,1745721044334,-584.56,0.00019726,2]
[359125858,1745721044344,-868.84,0.00019726,2]
[359125859,1745721044353,-411.17,0.00019726,2]
[359125860,1745721044363,-400.0,0.0002,2]
[359125861,1745721044373,-400.0,0.0002,2]
[359125862,1745721044382,-400.0,0.0002,2]
[359125863,1745721044392,-537.83,0.0002,2]
[359125864,1745721044401,-400.0,0.0002,2]
[359125865,1745721044411,-150.75055434,0.0002,7]
[359125866,1745721044421,-400.0,0.0002,2]
[359125867,1745721044430,-400.0,0.0002,2]
[359125868,1745721044440,-400.0,0.0002,2]
[359125869,1745721044450,-824.37,0.0002,2]
[359125870,1745721044461,-584.56,0.0002,2]
[359125871,1745721044471,-868.84,0.0002,2]
[359125872,1745721044480,-411.17,0.0002,2]
[359125873,1745721044490,-336.68914223,0.00020072,2]
[359125874,1745721044499,-400.0,0.00020273,2]
[359125875,1745721044509,-400.0,0.00020273,2]
[359125876,1745721044519,-400.0,0.00020273,2]
[359125877,1745721044528,-537.83,0.00020273,2]
[359125878,1745721044537,-400.0,0.00020273,2]
[359125879,1745721044546,-400.0,0.00020273,2]
[359125880,1745721044556,-400.0,0.00020273,2]
[359125881,1745721044565,-400.0,0.00020273,2]
[359125882,1745721044575,-824.37,0.00020273,2]
[359125883,1745721044584,-584.56,0.00020273,2]
[359125884,1745721044594,-868.84,0.00020273,2]
[359125885,1745721044603,-411.17,0.00020273,2]
[359125886,1745721044612,-160.05260886,0.00020411,2]
[359125887,1745721044622,-400.0,0.00020547,2]
[359125888,1745721044632,-400.0,0.00020547,2]
[359125889,1745721044641,-400.0,0.00020547,2]
[359125890,1745721044651,-537.83,0.00020547,2]
[359125891,1745721044661,-400.0,0.00020547,2]
[359125892,1745721044671,-400.0,0.00020547,2]
[359125893,1745721044681,-355.75935884,0.00020547,2]
[359125894,1745721044690,-400.0,0.00020547,2]
[359125895,1745721044700,-637.23754017,0.00020547,2]
[359125896,1745721044720,-187.13245983,0.00020547,2]
[359125897,1745721044730,-584.56,0.00020547,2]
[359125898,1745721044740,-535.06020795,0.00020547,2]
[359125899,1745721044854,-333.77979205,0.00020547,2]
[359125900,1745721044864,-411.17,0.00020547,2]
[359125901,1745721044874,-153.770156,0.00020602,2]
[359125902,1745721044884,-2816.8214417,0.00020602,2]
[359125903,1745721044893,-160.05260887,0.00020696,2]
[359125904,1745721044903,-400.0,0.00020821,2]
[359125905,1745721044913,-400.0,0.00020821,2]
[359125906,1745721044922,-352.06243234,0.00020821,2]
[359125907,1745721044932,-537.83,0.00020821,2]
[359125908,1745721044941,-400.0,0.00020821,2]
[359125909,1745721044951,-400.0,0.00020821,2]
[359125910,1745721044961,-400.0,0.00020821,2]
[359125911,1745721044970,-824.37,0.00020821,2]
[359125912,1745721044980,-584.56,0.00020821,2]
[359125913,1745721044989,-868.84,0.00020821,2]
[359125914,1745721044999,-411.17,0.00020821,2]
[359125915,1745721045008,-600.0,0.00020822,2]
[359125916,1745721045018,-500.0,0.00020973,2]
[359125917,1745721045029,-500.0,0.00020973,2]
[359125918,1745721045039,-507.57883868,0.00020973,2]
[359125919,1745721045049,-500.0,0.00020973,2]
[359125920,1745721045060,-47922.08871118,0.00021,2]
[359125921,1745721045098,-400.0,0.00016438,2]
[359125922,1745721045111,-156.090881,0.00018356,2]
[359125923,1745721045120,-16537.81645034,0.00021,2]
[359125924,1745721045132,-1591.80000001,0.00021,2]
[359125936,1745721045860,-5075.58570483,0.00021,2]
[359125937,1745721045872,-13247.07373851,0.00021,2]
[359125938,1745721045882,-150.0,0.00021,2]
[359125939,1745721045891,-372.79,0.00021,2]
[359125940,1745721045900,-157.46,0.00021,2]
[359125941,1745721045910,-157.46,0.00021,2]
[359125942,1745721045919,-151.0,0.00021,2]
[359125943,1745721045929,-159.21573458,0.00021,2]
[359125944,1745721045938,-151.0,0.00021,2]
[359125945,1745721045947,-151.0,0.00021,2]
[359125946,1745721045958,-825.037239,0.00021,2]
[359125947,1745721045967,-825.037239,0.00021,2]
[359125948,1745721045977,-155.83292,0.00021,2]
[359125949,1745721045986,-155.83292,0.00021,2]
[359125950,1745721045996,-151.0,0.00021,2]
[359125951,1745721046007,-170.51459929,0.00021087,2]
[359125952,1745721046019,-400.0,0.00021095,2]
[359125953,1745721046029,-400.0,0.00021095,2]
[359125954,1745721046039,-537.83,0.00021095,2]
[359125955,1745721046048,-400.0,0.00021095,2]
[359125956,1745721046058,-400.0,0.00021095,2]
[359125957,1745721046067,-400.0,0.00021095,2]
[359125958,1745721046077,-824.37,0.00021095,2]
[359125959,1745721046088,-584.56,0.00021095,2]
[359125960,1745721046098,-868.84,0.00021095,2]
[359125961,1745721046107,-411.17,0.00021095,2]
[359125962,1745721046117,-694.3777603,0.00021097,2]
[359125963,1745721046134,-13.7232397,0.00021097,2]
[359125964,1745721046144,-420.4905303,0.00021097,2]
[359125969,1745721387617,1500.0,0.00021,10]
[359125970,1745721417962,738.14,0.000101,2]
[359125980,1745722048131,-1000.0,0.00015311,2]
[359125981,1745722048152,-250.0,0.00015311,2]
[359125982,1745722048178,-500.0,0.00015343,2]
[359125983,1745722048204,-348.1392031,0.00015343,2]
[359126003,1745722231977,-300.0,0.00015342,2]
[359126004,1745722231987,-151.8607969,0.00015343,2]
[359126005,1745722231997,-500.0,0.00015343,2]
[359126006,1745722232006,-500.0,0.00015343,2]
[359126007,1745722232016,-500.0,0.00015343,2]
[359126008,1745722232025,-500.0,0.00015343,2]
[359126009,1745722232035,-500.0,0.00015343,2]
[359126010,1745722232045,-455.4898171,0.00015343,2]
[359126012,1745722232056,-500.0,0.00015343,2]
[359126013,1745722232066,-500.0,0.00015343,2]
[359126014,1745722232077,-14505.2238065,0.00015344,2]
[359126015,1745722232086,-1551.33298327,0.00015481,2]
[359126016,1745722232098,-1483.98126463,0.00015481,2]
[359126018,1745722232109,-164.7254495,0.00016038,2]
[359126020,1745722232119,-500.0,0.00016164,2]
[359126022,1745722232129,-179.80060247,0.00016338,2]
[359126024,1745722232138,-312.06775509,0.00016437,2]
[359126025,1745722232148,-500.0,0.00016437,2]
[359126028,1745722232158,-177.76079741,0.00016437,2]
[359126030,1745722232168,-500.0,0.00016438,2]
[359126032,1745722232177,-205.05690836,0.00016438,2]
[359126034,1745722232187,-400.0,0.00016438,2]
[359126035,1745722232199,-400.0,0.00016438,2]
[359126036,1745722232209,-205.87187153,0.00016438,2]
[359126037,1745722232219,-402.27129963,0.00016438,2]
[359126039,1745722232229,-400.0,0.00016438,2]
[359126041,1745722232238,-400.0,0.00016438,2]
[359126042,1745722232248,-400.0,0.00016438,2]
[359126044,1745722232258,-400.0,0.00016438,2]
[359126045,1745722232268,-400.0,0.00016438,2]
[359126047,1745722232277,-400.0,0.00016438,2]
[359126048,1745722232287,-400.0,0.00016438,2]
[359126049,1745722232297,-400.0,0.00016438,2]
[359126050,1745722232306,-400.0,0.00016438,2]
[359126051,1745722232316,-400.0,0.00016438,2]
[359126052,1745722232326,-400.0,0.00016438,2]
[359126053,1745722232335,-400.0,0.00016438,2]
[359126054,1745722232345,-400.0,0.00016438,2]
[359126055,1745722232354,-400.0,0.00016438,2]
[359126056,1745722232364,-384.29376033,0.00016438,2]
[359126057,1745722232375,-400.0,0.00016438,2]
[359126058,1745722232385,-400.0,0.00016438,2]
[359126059,1745722232396,-400.0,0.00016438,2]
[359126060,1745722232405,-400.0,0.00016438,2]
[359126061,1745722232415,-400.0,0.00016438,2]
[359126062,1745722232425,-400.0,0.00016438,2]
[359126063,1745722232435,-506.96037082,0.00016438,2]
[359126064,1745722232445,-400.0,0.00016438,2]
[359126065,1745722232454,-403.7,0.00016438,2]
[359126066,1745722232464,-511.46039643,0.00016438,2]
[359126067,1745722232474,-400.0,0.00016438,2]
[359126068,1745722232484,-400.0,0.00016438,2]
[359126069,1745722232493,-509.7440585,0.00016438,2]
[359126070,1745722232503,-400.0,0.00016438,2]
[359126071,1745722232513,-400.0,0.00016438,2]
[359126072,1745722232523,-400.0,0.00016438,2]
[359126073,1745722232533,-400.0,0.00016438,2]
[359126074,1745722232543,-400.0,0.00016438,2]
[359126075,1745722232559,-400.0,0.00016438,2]
[359126076,1745722232570,-513.63095606,0.00016438,2]
[359126077,1745722232584,-205.01647366,0.00016438,2]
[359126078,1745722232594,-200.0,0.00016438,2]
[359126079,1745722232605,-505.23617622,0.00016438,2]
[359126080,1745722232615,-400.0,0.00016438,2]
[359126081,1745722232627,-400.0,0.00016438,2]
[359126082,1745722232637,-400.0,0.00016438,2]
[359126083,1745722232647,-400.0,0.00016438,2]
[359126084,1745722232657,-400.0,0.00016438,2]
[359126085,1745722232667,-182.51600722,0.00016438,2]
[359126086,1745722232677,-511.59212963,0.00016438,2]
[359126087,1745722232686,-400.0,0.00016438,2]
[359126088,1745722232696,-400.0,0.00016438,2]
[359126089,1745722232706,-400.0,0.00016438,2]
[359126090,1745722232716,-400.0,0.00016438,2]
[359126091,1745722232725,-400.0,0.00016438,2]
[359126092,1745722232938,-400.0,0.00016438,2]
[359126093,1745722232949,-400.0,0.00016438,2]
[359126094,1745722232958,-400.0,0.00016438,2]
[359126095,1745722232969,-400.0,0.00016438,2]
[359126096,1745722232978,-400.0,0.00016438,2]
[359126097,1745722232988,-400.0,0.00016438,2]
[359126098,1745722232998,-400.0,0.00016438,2]
[359126099,1745722233007,-856.04,0.00016438,2]
[359126100,1745722233017,-400.0,0.00016438,2]
[359126101,1745722233027,-541.49640468,0.00016438,2]
[359126102,1745722233050,-400.0,0.00016438,2]
[359126103,1745722233062,-400.0,0.00016438,2]
[359126104,1745722233073,-150.67503592,0.00016438,2]
[359126105,1745722233083,-412.81250287,0.00016438,2]
[359126106,1745722233094,-400.0,0.00016438,2]
[359126107,1745722233105,-400.0,0.00016438,2]
[359126108,1745722233116,-558.03,0.00016438,2]
[359126109,1745722233128,-400.0,0.00016438,2]
[359126110,1745722233139,-520.75926204,0.00016438,2]
[359126111,1745722233150,-400.0,0.00016438,2]
[359126112,1745722233160,-400.0,0.00016438,2]
[359126113,1745722233171,-400.0,0.00016438,2]
[359126114,1745722233180,-400.0,0.00016438,2]
[359126115,1745722233191,-400.0,0.00016438,2]
[359126116,1745722233202,-400.0,0.00016438,2]
[359126117,1745722233212,-797.05,0.00016438,2]
[359126118,1745722233223,-400.0,0.00016438,2]
[359126119,1745722233234,-400.0,0.00016438,2]
[359126120,1745722233244,-400.0,0.00016438,2]
[359126121,1745722233255,-400.0,0.00016438,2]
[359126122,1745722233265,-542.53442255,0.00016438,2]
[359126123,1745722233275,-400.0,0.00016438,2]
[359126124,1745722233285,-400.0,0.00016438,2]
[359126125,1745722233295,-400.0,0.00016438,2]
[359126126,1745722233306,-400.0,0.00016438,2]
[359126127,1745722233316,-400.0,0.00016438,2]
[359126128,1745722233327,-400.0,0.00016438,2]
[359126129,1745722233338,-400.0,0.00016438,2]
[359126130,1745722233348,-400.0,0.00016438,2]
[359126131,1745722233359,-1899.42,0.00016438,2]
[359126132,1745722233369,-400.0,0.00016438,2]
[359126133,1745722233380,-400.0,0.00016438,2]
[359126134,1745722233390,-500.0,0.00016438,2]
[359126135,1745722233401,-400.0,0.00016438,2]
[359126136,1745722233411,-728.92,0.00016438,2]
[359126137,1745722233422,-400.0,0.00016438,2]
[359126138,1745722233433,-400.0,0.00016438,2]
[359126139,1745722233443,-400.0,0.00016438,2]
[359126140,1745722233454,-400.0,0.00016438,2]
[359126141,1745722233464,-400.0,0.00016438,2]
[359126142,1745722233475,-400.0,0.00016438,2]
[359126143,1745722233486,-612.11,0.00016438,2]
[359126144,1745722233496,-839.52,0.00016438,2]
[359126145,1745722233506,-400.0,0.00016438,2]
[359126146,1745722233517,-1000.0,0.00016438,2]
[359126147,1745722233527,-1825.34671484,0.00016612,2]
[359126148,1745722233537,-224.31264998,0.00016678,2]
[359126149,1745722233556,-529.00356823,0.00016712,2]
[359126150,1745722233570,-400.0,0.00016712,2]
[359126151,1745722233581,-400.0,0.00016712,2]
[359126152,1745722233593,-400.0,0.00016712,2]
[359126153,1745722233604,-400.0,0.00016712,2]
[359126154,1745722233614,-400.0,0.00016712,2]
[359126155,1745722233624,-400.0,0.00016712,2]
[359126156,1745722233636,-400.0,0.00016712,2]
[359126157,1745722233646,-400.0,0.00016712,2]
[359126158,1745722233656,-400.0,0.00016712,2]
[359126159,1745722233672,-199.98418624,0.00016712,2]
[359126160,1745722233683,-522.19447368,0.00016712,2]
[359126161,1745722233693,-400.0,0.00016712,2]
[359126162,1745722233703,-400.0,0.00016712,2]
[359126163,1745722233714,-400.0,0.00016712,2]
[359126164,1745722233724,-403.7,0.00016712,2]
[359126165,1745722233735,-400.0,0.00016712,2]
[359126166,1745722233746,-400.0,0.00016712,2]
[359126167,1745722233756,-400.0,0.00016712,2]
[359126168,1745722233766,-400.0,0.00016712,2]
[359126169,1745722233777,-400.0,0.00016712,2]
[359126170,1745722233789,-400.0,0.00016712,2]
[359126171,1745722233801,-500.0,0.00016712,2]
[359126172,1745722233811,-400.0,0.00016712,2]
[359126173,1745722233822,-400.0,0.00016712,2]
[359126174,1745722233832,-213.41282091,0.00016712,2]
[359126175,1745722233842,-400.0,0.00016712,2]
[359126176,1745722233852,-400.0,0.00016712,2]
[359126177,1745722233862,-400.0,0.00016712,2]
[359126178,1745722233872,-219.63083192,0.00016712,2]
[359126179,1745722233882,-305.03724251,0.00016712,2]
[359126180,1745722233892,-400.0,0.00016712,2]
[359126181,1745722233903,-40.01475533,0.00016712,2]
[359126201,1745722237981,-400.0,0.00016438,2]
[359126203,1745722237992,-359.98524467,0.00016712,2]
[359126205,1745722238002,-400.0,0.00016712,2]
[359126206,1745722238012,-856.04,0.00016712,2]
[359126208,1745722238022,-400.0,0.00016712,2]
[359126210,1745722238031,-400.0,0.00016712,2]
[359126212,1745722238041,-400.0,0.00016712,2]
[359126214,1745722238051,-400.0,0.00016712,2]
[359126216,1745722238063,-558.03,0.00016712,2]
[359126218,1745722238072,-400.0,0.00016712,2]
[359126220,1745722238082,-492.26975743,0.00016712,2]
[359126222,1745722238093,-400.0,0.00016712,2]
[359126224,1745722238102,-400.0,0.00016712,2]
[359126226,1745722238112,-400.0,0.00016712,2]
[359126228,1745722238122,-400.0,0.00016712,2]
[359126229,1745722238132,-400.0,0.00016712,2]
[359126230,1745722238142,-797.05,0.00016712,2]
[359126232,1745722238152,-400.0,0.00016712,2]
[359126233,1745722238161,-400.0,0.00016712,2]
[359126234,1745722238172,-400.0,0.00016712,2]
[359126235,1745722238183,-208.20604785,0.00016712,2]
[359126236,1745722238196,-191.79395215,0.00016712,2]
[359126237,1745722238205,-400.0,0.00016712,2]
[359126238,1745722238215,-68.05777626,0.00016712,2]
[359126410,1745722240434,-331.94222374,0.00016712,2]
[359126411,1745722240444,-400.0,0.00016712,2]
[359126412,1745722240455,-400.0,0.00016712,2]
[359126413,1745722240464,-400.0,0.00016712,2]
[359126414,1745722240474,-400.0,0.00016712,2]
[359126415,1745722240485,-400.0,0.00016712,2]
[359126416,1745722240495,-1899.42,0.00016712,2]
[359126417,1745722240504,-400.0,0.00016712,2]
[359126418,1745722240514,-400.0,0.00016712,2]
[359126419,1745722240524,-728.92,0.00016712,2]
[359126420,1745722240533,-400.0,0.00016712,2]
[359126421,1745722240542,-400.0,0.00016712,2]
[359126422,1745722240556,-400.0,0.00016712,2]
[359126423,1745722240566,-400.0,0.00016712,2]
[359126424,1745722240575,-400.0,0.00016712,2]
[359126425,1745722240586,-612.11,0.00016712,2]
[359126426,1745722240596,-839.52,0.00016712,2]
[359126427,1745722240606,-400.0,0.00016712,2]
[359126428,1745722240618,-400.0,0.00016712,2]
[359126429,1745722240629,-1500.0,0.00016712,2]
[359126430,1745722240642,-420.0,0.00016786,2]
[359126431,1745722240654,-329.84488514,0.000169,2]
[359126432,1745722240665,-400.0,0.00016986,2]
[359126433,1745722240674,-400.0,0.00016986,2]
[359126434,1745722240685,-400.0,0.00016986,2]
[359126435,1745722240694,-400.0,0.00016986,2]
[359126436,1745722240703,-329.1825096,0.00016986,2]
[359126437,1745722240713,-400.0,0.00016986,2]
[359126438,1745722240724,-400.0,0.00016986,2]
[359126439,1745722240736,-400.0,0.00016986,2]
[359126440,1745722240745,-403.7,0.00016986,2]
[359126441,1745722240755,-400.0,0.00016986,2]
[359126442,1745722240765,-400.0,0.00016986,2]
[359126443,1745722240775,-400.0,0.00016986,2]
[359126444,1745722240785,-400.0,0.00016986,2]
[359126445,1745722240794,-400.0,0.00016986,2]
[359126446,1745722240805,-425.72356626,0.00016986,2]
[359126447,1745722240815,-400.0,0.00016986,2]
[359126448,1745722240825,-400.0,0.00016986,2]
[359126449,1745722240836,-400.0,0.00016986,2]
[359126450,1745722240846,-400.0,0.00016986,2]
[359126451,1745722240856,-400.0,0.00016986,2]
[359126452,1745722240866,-856.04,0.00016986,2]
[359126453,1745722240875,-329.96843009,0.00016986,2]
[359126454,1745722240885,-400.0,0.00016986,2]
[359126455,1745722240894,-400.0,0.00016986,2]
[359126456,1745722240904,-400.0,0.00016986,2]
[359126457,1745722240914,-558.03,0.00016986,2]
[359126458,1745722240923,-400.0,0.00016986,2]
[359126459,1745722240934,-400.0,0.00016986,2]
[359126460,1745722240945,-400.0,0.00016986,2]
[359126461,1745722240956,-400.0,0.00016986,2]
[359126462,1745722240966,-400.0,0.00016986,2]
[359126463,1745722240977,-200.0,0.00016986,2]
[359126464,1745722240988,-797.05,0.00016986,2]
[359126465,1745722240998,-400.0,0.00016986,2]
[359126466,1745722241009,-400.0,0.00016986,2]
[359126467,1745722241020,-400.0,0.00016986,2]
[359126468,1745722241031,-400.0,0.00016986,2]
[359126469,1745722241041,-400.0,0.00016986,2]
[359126470,1745722241053,-400.0,0.00016986,2]
[359126471,1745722241064,-400.0,0.00016986,2]
[359126472,1745722241074,-435.17296276,0.00016986,2]
[359126473,1745722241084,-400.0,0.00016986,2]
[359126474,1745722241095,-400.0,0.00016986,2]
[359126475,1745722241106,-400.0,0.00016986,2]
[359126476,1745722241116,-1899.42,0.00016986,2]